bitfinex/quotes_BTCUSD_20250313
["timestamp","ask_amount","ask_price","bid_price","bid_amount"]
[1741885944760,0.24801,80642.0,80633.0,0.012401]
[1741885945001,0.0124,80642.0,80629.0,0.3]
[1741885945276,0.248033,80635.0,80629.0,0.3]
[1741885945472,0.0124,80644.0,80636.0,0.002]
[1741885945473,0.248024,80638.0,80636.0,0.002]
[1741885945634,0.248015,80641.0,80636.0,0.002]
[1741885946470,0.248006,80643.0,80636.0,0.002]
[1741885946614,0.24802,80639.0,80636.0,0.002]
[1741885947025,0.248015,80641.0,80636.0,0.002]
[1741885947222,0.248018,80640.0,80636.0,0.002]
[1741885947508,0.248011,80642.0,80637.0,0.012401]
[1741885947683,0.01942182,80649.0,80637.0,0.012401]
[1741885947837,0.248,80645.0,80639.0,0.0124]
[1741885948044,0.26741182,80649.0,80640.0,0.248015]
[1741885948045,0.248,80646.0,80640.0,0.248015]
[1741885948246,0.248009,80643.0,80637.0,0.012401]
[1741885948442,0.248019,80639.0,80638.0,1.5]
[1741885948643,0.012399,80651.0,80640.0,0.0124]
[1741885948848,0.0124,80643.0,80636.0,0.002]
[1741885949082,0.260412,80642.0,80639.0,0.001]
[1741885949286,0.260412,80642.0,80636.0,0.002]
[1741885949640,0.0124,80643.0,80636.0,0.002]
[1741885949844,0.01942182,80649.0,80648.0,0.247991]
[1741885950060,0.01942182,80649.0,80648.0,0.26039]
[1741885950469,0.01942182,80649.0,80648.0,0.38009099]
[1741885950639,0.01267939,80667.0,80649.0,0.012399]
[1741885950798,0.01941963,80657.0,80649.0,0.012399]
[1741885951800,0.01941963,80657.0,80648.0,0.26039]
[1741885952026,0.26738363,80657.0,80649.0,0.012399]
[1741885952233,0.247969,80656.0,80649.0,0.015399]
[1741885952407,0.247969,80656.0,80649.0,0.018399]
[1741885952605,0.012398,80655.0,80649.0,0.003]
[1741885952809,0.01941963,80657.0,80649.0,0.247988]
[1741885953612,0.01941963,80657.0,80649.0,0.260387]
[1741885955037,0.10849876,80671.0,80649.0,0.69462884]
[1741885955237,0.012395,80673.0,80649.0,0.69762884]
[1741885955444,0.247925,80670.0,80649.0,0.70062884]
[1741885955646,0.0003378,80676.0,80649.0,0.70062884]
[1741885955847,1e-06,80650.0,80649.0,1.11482884]
[1741885956050,1e-06,80650.0,80649.0,1.11682884]
[1741885956253,1e-06,80650.0,80649.0,1.11982884]
[1741885956446,1e-06,80650.0,80649.0,1.12382884]
[1741885956871,1e-06,80650.0,80649.0,1.11682884]
[1741885957180,1e-06,80650.0,80649.0,1.12182884]
[1741885957743,1e-06,80650.0,80649.0,1.19682884]
[1741885958158,1e-06,80650.0,80649.0,1.27186884]
[1741885958355,0.001001,80650.0,80649.0,1.27586884]
[1741885958661,0.001001,80650.0,80649.0,1.27086884]
[1741885959037,1e-06,80650.0,80649.0,0.84112799]
[1741885959157,0.001001,80650.0,80649.0,0.84512799]
[1741885959616,1e-06,80650.0,80649.0,0.85112799]
[1741885959822,0.0003378,80676.0,80669.0,0.260322]
[1741885959963,0.0003378,80676.0,80675.0,0.246908]
[1741885960167,0.0003378,80676.0,80674.0,0.012395]
[1741885960933,0.0003378,80676.0,80675.0,0.012395]
[1741885961138,0.0003378,80676.0,80673.0,0.11970099]
[1741885961437,0.0003378,80676.0,80673.0,0.36761399]
[1741885961640,0.247908,80675.0,80670.0,0.012396]
[1741885961844,0.247917,80672.0,80666.0,0.260331]
[1741885962051,0.0003378,80676.0,80667.0,0.38002699]
[1741885962052,0.247913,80674.0,80667.0,0.38002699]
[1741885962278,0.247916,80673.0,80669.0,0.001]
[1741885962414,0.26733117,80673.0,80668.0,0.260322]
[1741885962618,0.01941517,80673.0,80658.0,0.012398]
[1741885962826,0.247947,80663.0,80660.0,0.3]
[1741885963415,0.247941,80665.0,80660.0,0.3]
[1741885963771,0.247941,80665.0,80660.0,0.547954]
[1741885963971,0.247904,80677.0,80670.0,0.247923]
[1741885964116,0.247894,80680.0,80672.0,0.260312]
[1741885964325,0.2482438,80676.0,80667.0,0.012396]
[1741885964528,0.247929,80668.0,80667.0,0.11970099]
[1741885965172,0.247938,80666.0,80660.0,0.017397]
[1741885965372,0.247929,80668.0,80663.0,0.247942]
[1741885965577,0.247922,80671.0,80667.0,0.002]
[1741885965787,0.247925,80670.0,80667.0,0.002]
[1741885966008,0.01941517,80673.0,80667.0,0.002]
[1741885966251,0.01941517,80673.0,80671.0,0.24792]
[1741885966457,0.01941517,80673.0,80672.0,0.13297055]
[1741885966612,0.0003378,80676.0,80675.0,0.012395]
[1741885966810,0.0003378,80676.0,80675.0,0.38000399]
[1741885967623,0.0003378,80676.0,80670.0,0.012396]
[1741885967624,0.000338,80673.0,80670.0,0.012396]
[1741885967823,0.000338,80673.0,80671.0,0.260313]
[1741885968050,0.000338,80673.0,80672.0,0.012395]
[1741885968250,0.000338,80673.0,80672.0,0.13209599]
[1741885969678,0.000338,80673.0,80672.0,0.13809599]
[1741885970736,0.000338,80673.0,80672.0,0.13897038]
[1741885971063,0.000338,80673.0,80672.0,0.45351123]
[1741885971264,0.000338,80673.0,80672.0,0.45263684]
[1741885972075,0.000338,80673.0,80672.0,0.60447684]
[1741885972418,0.000338,80673.0,80672.0,0.60947684]
[1741885972817,0.000338,80673.0,80672.0,0.60647684]
[1741885973381,0.000338,80673.0,80672.0,0.60547684]
[1741885973552,0.000338,80673.0,80672.0,0.61147684]
[1741885973757,0.000338,80673.0,80672.0,0.60747684]
[1741885973955,0.000338,80673.0,80672.0,0.61347684]
[1741885974136,0.000338,80673.0,80672.0,0.43170099]
[1741885974338,0.000338,80673.0,80672.0,0.44409599]
[1741885974748,0.000338,80673.0,80672.0,0.43170099]
[1741885975471,0.000338,80673.0,80672.0,0.44409599]
[1741885976099,0.000338,80673.0,80672.0,0.45263684]
[1741885976294,0.000338,80673.0,80672.0,0.44663684]
[1741885976546,0.000338,80673.0,80672.0,0.45063684]
[1741885976772,0.000338,80673.0,80672.0,0.45463684]
[1741885976968,0.000338,80673.0,80672.0,0.44663684]
[1741885977200,0.000338,80673.0,80672.0,0.60135684]
[1741885977329,0.000338,80673.0,80672.0,0.45263684]
[1741885977515,0.000338,80673.0,80672.0,0.60735684]
[1741885978344,0.000338,80673.0,80672.0,0.61335684]
[1741885978537,0.000338,80673.0,80672.0,2.10735684]
[1741885978738,0.000338,80673.0,80672.0,2.10135684]
[1741885978910,0.000338,80673.0,80672.0,2.10735684]
[1741885979111,0.000338,80673.0,80672.0,2.11335684]
[1741885979411,0.000338,80673.0,80672.0,2.10735684]
[1741885979769,0.000338,80673.0,80672.0,2.11335684]
[1741885979972,0.000338,80673.0,80672.0,1.94409599]
[1741885980254,0.000338,80673.0,80672.0,0.44409599]
[1741885980431,0.000338,80673.0,80672.0,0.45863684]
[1741885980843,0.000338,80673.0,80672.0,1.95863684]
[1741885981600,0.0003378,80676.0,80675.0,0.560303]
[1741885981799,8e-07,80676.0,80675.0,0.69454484]
[1741885982971,8e-07,80676.0,80675.0,0.70054484]
[1741885983178,8e-07,80676.0,80675.0,0.70654484]
[1741885983353,8e-07,80676.0,80675.0,0.78651747]
[1741885983754,0.0003378,80694.0,80693.0,0.57478485]
[1741885983961,8e-07,80694.0,80693.0,1.69116584]
[1741885984096,8e-07,80694.0,80693.0,1.5064854]
[1741885984318,8e-07,80694.0,80693.0,1.63616584]
[1741885985759,8e-07,80694.0,80693.0,1.64216584]
[1741885985960,8e-07,80694.0,80693.0,1.63616584]
[1741885986846,8e-07,80694.0,80693.0,1.48744584]
[1741885987020,8e-07,80694.0,80693.0,1.64216584]
[1741885987219,8e-07,80694.0,80693.0,1.48744584]
[1741885987451,8e-07,80694.0,80693.0,1.64216584]
[1741885987650,8e-07,80694.0,80693.0,1.63716584]
[1741885988503,8e-07,80694.0,80693.0,3.13116584]
[1741885988695,8e-07,80694.0,80693.0,3.13716584]
[1741885989313,8e-07,80694.0,80693.0,3.13116584]
[1741885989511,8e-07,80694.0,80693.0,3.14216584]
[1741885989714,8e-07,80694.0,80693.0,3.60642964]
[1741885989914,8e-07,80694.0,80693.0,3.61242964]
[1741885990115,8e-07,80694.0,80693.0,3.65272964]
[1741885991097,8e-07,80694.0,80693.0,3.18342584]
[1741885991236,8e-07,80694.0,80693.0,3.17742584]
[1741885991433,8e-07,80694.0,80693.0,3.23342584]
[1741885992082,8e-07,80694.0,80693.0,3.23242584]
[1741885992314,8e-07,80694.0,80693.0,3.24442584]
[1741885992519,8e-07,80731.0,80726.0,0.005]
[1741885992668,8e-07,80731.0,80725.0,0.560141]
[1741885992669,8e-07,80731.0,80730.0,0.260125]
[1741885992869,8e-07,80731.0,80730.0,0.67982599]
[1741885993070,8e-07,80731.0,80730.0,0.41970099]
[1741885993273,8e-07,80731.0,80729.0,0.260127]
[1741885993597,8e-07,80731.0,80730.0,0.012386]
[1741885993813,8e-07,80731.0,80727.0,0.78672]
[1741885994007,8e-07,80731.0,80729.0,0.260127]
[1741885994240,8e-07,80731.0,80730.0,0.13208699]
[1741885994915,8e-07,80731.0,80730.0,0.13508699]
[1741885995116,8e-07,80731.0,80730.0,0.43595911]
[1741885995318,8e-07,80731.0,80730.0,0.43508699]
[1741885995745,8e-07,80731.0,80730.0,0.43808699]
[1741885996123,8e-07,80731.0,80730.0,0.43208699]
[1741885996340,8e-07,80731.0,80730.0,0.42670099]
[1741885996555,8e-07,80731.0,80730.0,0.43908699]
[1741885996709,0.2477368,80731.0,80730.0,0.007]
[1741885996892,8e-07,80731.0,80730.0,0.007]
[1741885997087,8e-07,80731.0,80730.0,0.13908699]
[1741885997310,8e-07,80731.0,80730.0,0.007]
[1741885997475,8e-07,80731.0,80730.0,0.13908699]
[1741885997895,8e-07,80731.0,80730.0,0.13995912]
[1741885998098,0.2477368,80731.0,80730.0,0.007]
[1741885998322,8e-07,80731.0,80730.0,0.007]
[1741885998650,8e-07,80731.0,80730.0,0.13908699]
[1741885998791,8e-07,80731.0,80730.0,0.13995912]
[1741885999214,8e-07,80731.0,80730.0,0.13295912]
[1741885999380,8e-07,80731.0,80730.0,0.13495912]
[1741885999576,8e-07,80731.0,80730.0,0.13795912]
[1741885999783,8e-07,80731.0,80730.0,0.43495912]
[1741885999983,8e-07,80731.0,80730.0,0.43208699]
[1741886000265,8e-07,80731.0,80730.0,0.43808699]
[1741886000624,8e-07,80731.0,80730.0,1.93808699]
[1741886001589,8e-07,80731.0,80730.0,1.93508699]
[1741886002051,8e-07,80731.0,80730.0,1.93608699]
[1741886002272,8e-07,80731.0,80730.0,1.94208699]
[1741886002583,8e-07,80731.0,80730.0,1.93808699]
[1741886002784,8e-07,80731.0,80730.0,1.94408699]
[1741886002972,8e-07,80731.0,80730.0,1.99408699]
[1741886003183,8e-07,80731.0,80730.0,1.93808699]
[1741886003360,8e-07,80731.0,80730.0,2.05082784]
[1741886003564,8e-07,80731.0,80730.0,2.11929342]
[1741886003779,8e-07,80731.0,80730.0,2.06929342]
[1741886004005,8e-07,80731.0,80730.0,2.12529342]
[1741886004234,8e-07,80731.0,80730.0,1.95355989]
[1741886004437,8e-07,80731.0,80730.0,0.61355989]
[1741886004656,8e-07,80731.0,80730.0,0.60855989]
[1741886004796,8e-07,80731.0,80730.0,0.67810074]
[1741886005000,0.0004,80749.0,80748.0,0.560068]
[1741886005245,0.0004,80749.0,80748.0,0.83504899]
[1741886006159,0.0004,80749.0,80748.0,0.84518537]
[1741886006565,0.0004,80749.0,80748.0,0.85118537]
[1741886007089,0.0004,80749.0,80748.0,0.85718537]
[1741886007300,0.0004,80749.0,80748.0,0.70190537]
[1741886007817,0.0007376,80749.0,80748.0,0.70190537]
[1741886010581,0.2484186,80749.0,80748.0,0.012]
[1741886010781,0.2608026,80749.0,80748.0,0.012]
[1741886011008,0.28019896,80749.0,80748.0,0.012]
[1741886011208,0.28019896,80749.0,80730.0,0.0001688]
[1741886011209,0.260122,80731.0,80730.0,0.0001688]
[1741886011382,0.336822,80731.0,80730.0,0.0001688]
[1741886011735,0.35136285,80731.0,80730.0,0.0001688]
[1741886011934,0.0767,80731.0,80730.0,0.0001688]
[1741886012136,0.324436,80731.0,80730.0,0.0001688]
[1741886012344,0.0767,80731.0,80730.0,0.0001688]
[1741886013117,0.089086,80731.0,80730.0,0.0011688]
[1741886013441,0.089086,80731.0,80730.0,0.0021688]
[1741886013618,0.09063456,80731.0,80730.0,0.0021688]
[1741886013791,0.10517541,80731.0,80730.0,0.0021688]
[1741886014194,0.5248764,80731.0,80730.0,8e-07]
[1741886014379,0.247852,80694.0,80687.0,0.012393]
[1741886014588,0.247846,80695.0,80692.0,0.11970099]
[1741886014812,0.24784,80697.0,80692.0,0.11970099]
[1741886015222,0.0812,80704.0,80698.0,0.247837]
[1741886015619,0.0812,80704.0,80700.0,0.260221]
[1741886015835,0.0801,80717.0,80711.0,0.011389]
[1741886016047,0.247798,80711.0,80704.0,0.247819]
[1741886016549,0.247804,80709.0,80702.0,0.247825]
[1741886016679,0.001,80704.0,80702.0,0.247825]
[1741886016885,0.001,80704.0,80701.0,0.13209199]
[1741886016886,0.247825,80702.0,80701.0,0.11970099]
[1741886017112,0.260216,80702.0,80700.0,0.003]
[1741886017513,0.247825,80702.0,80700.0,0.003]
[1741886017984,0.002,80704.0,80700.0,0.25083]
[1741886018137,0.002,80704.0,80700.0,0.003]
[1741886018477,0.002,80704.0,80701.0,1.747827]
[1741886018661,0.002,80704.0,80703.0,0.012391]
[1741886018879,0.001,80704.0,80703.0,0.13296547]
[1741886019284,0.001,80704.0,80703.0,0.43296547]
[1741886019485,0.001,80704.0,80703.0,1.93209199]
[1741886019815,0.247708,80740.0,80733.0,0.247728]
[1741886019988,0.012386,80735.0,80721.0,0.3]
[1741886020186,0.247761,80723.0,80722.0,0.11870099]
[1741886020410,0.247774,80719.0,80715.0,0.15572]
[1741886020615,0.012388,80720.0,80706.0,0.3]
[1741886020735,0.247791,80714.0,80708.0,0.247805]
[1741886020971,0.247794,80712.0,80709.0,0.11970099]
[1741886021184,0.260189,80711.0,80709.0,0.11970099]
[1741886021382,0.247815,80706.0,80703.0,0.011]
[1741886021640,0.247806,80708.0,80703.0,0.13070099]
[1741886021838,0.247806,80709.0,80703.0,0.13070099]
[1741886021986,0.247812,80707.0,80703.0,0.11970099]
[1741886022189,0.247807,80708.0,80704.0,0.247819]
[1741886022389,0.247791,80713.0,80706.0,0.247812]
[1741886022590,0.247797,80712.0,80705.0,0.01239]
[1741886022901,0.2478,80711.0,80705.0,0.01239]
[1741886023996,0.247797,80712.0,80706.0,0.01239]
[1741886024196,0.247802,80710.0,80705.0,0.264203]
[1741886024530,0.2478,80711.0,80705.0,0.264203]
[1741886024959,0.10839047,80724.0,80712.0,0.012389]
[1741886025155,0.09600347,80724.0,80718.0,0.247775]
[1741886025336,0.01940347,80724.0,80717.0,0.012388]
[1741886025541,0.247743,80729.0,80723.0,0.012388]
[1741886025762,0.247732,80733.0,80722.0,0.247761]
[1741886025763,0.247748,80728.0,80722.0,0.247761]
[1741886026481,0.260156,80721.0,80709.0,0.2478]
[1741886026682,0.247776,80718.0,80703.0,0.15488]
[1741886026890,0.247794,80713.0,80704.0,0.11970099]
[1741886027508,0.247802,80710.0,80705.0,0.01239]
[1741886027687,0.247802,80710.0,80703.0,0.15488]
[1741886027688,0.247809,80708.0,80706.0,0.11970099]
[1741886027886,0.247821,80704.0,80697.0,0.15472]
[1741886028226,0.012389,80714.0,80697.0,0.15472]
[1741886028227,0.247788,80714.0,80702.0,0.13209199]
[1741886028441,0.012387,80725.0,80711.0,0.012389]
[1741886028642,0.15472,80726.0,80703.0,0.00087324]
[1741886028643,0.247752,80726.0,80720.0,0.24777]
[1741886028820,0.247753,80726.0,80720.0,0.24777]
[1741886029044,0.1653724,80743.0,80725.0,0.012387]
[1741886029250,0.247711,80739.0,80731.0,0.247736]
[1741886029444,0.1653724,80743.0,80727.0,0.012387]
[1741886029446,0.247723,80736.0,80727.0,0.012387]
[1741886029597,0.247738,80731.0,80721.0,0.13208899]
[1741886029810,0.088986,80735.0,80724.0,0.11970099]
[1741886029811,0.247748,80727.0,80724.0,0.11970099]
[1741886030351,0.247748,80727.0,80718.0,0.012388]
[1741886030352,0.01940271,80730.0,80719.0,0.247773]
[1741886030558,0.247757,80725.0,80719.0,0.260161]
[1741886030760,0.247759,80724.0,80719.0,0.260161]
[1741886030953,0.247759,80724.0,80715.0,0.312389]
[1741886030954,0.012388,80719.0,80706.0,0.247812]
[1741886031154,0.012388,80719.0,80707.0,0.11970099]
[1741886031401,0.24779,80714.0,80709.0,0.01239]
[1741886031576,0.24779,80714.0,80705.0,0.01239]
[1741886031577,0.247751,80727.0,80720.0,0.247768]
[1741886031736,0.247751,80727.0,80719.0,0.012388]
[1741886032083,0.247751,80727.0,80724.0,0.001]
[1741886032304,0.247716,80738.0,80725.0,0.012387]
[1741886032510,0.247743,80729.0,80724.0,0.247755]
[1741886032948,0.247742,80729.0,80724.0,0.260142]
[1741886033153,0.012385,80741.0,80729.0,0.012387]
[1741886033331,0.012384,80744.0,80731.0,0.012386]
[1741886033544,0.249714,80738.0,80731.0,0.012386]
[1741886033757,0.249714,80738.0,80732.0,0.247733]
[1741886033954,0.247726,80735.0,80730.0,0.260124]
[1741886034178,0.247727,80734.0,80727.0,0.260134]
[1741886034358,0.247735,80732.0,80726.0,0.247749]
[1741886034555,0.247739,80731.0,80725.0,0.260138]
[1741886034752,0.247739,80731.0,80724.0,0.13308799]
[1741886034934,0.247747,80728.0,80724.0,0.11970099]
[1741886035138,0.247747,80728.0,80723.0,0.247759]
[1741886035139,0.247765,80722.0,80711.0,0.2479648]
[1741886035305,0.24777,80720.0,80714.0,0.012389]
[1741886035501,0.24777,80720.0,80714.0,0.260174]
[1741886035723,0.24777,80720.0,80716.0,0.012389]
[1741886035947,0.247757,80725.0,80718.0,0.012388]
[1741886036155,0.24775,80727.0,80720.0,0.012388]
[1741886036358,0.247754,80725.0,80720.0,0.012388]
[1741886036956,0.247759,80724.0,80719.0,0.25077]
[1741886037159,0.247759,80724.0,80719.0,0.003]
[1741886037675,0.247759,80724.0,80719.0,0.007]
[1741886037898,0.247759,80724.0,80719.0,0.003]
[1741886038105,0.247763,80722.0,80719.0,0.003]
[1741886038254,0.247763,80722.0,80719.0,0.006]
[1741886038459,0.24777,80720.0,80719.0,0.006]
[1741886038661,0.247759,80724.0,80719.0,0.006]
[1741886038857,0.247759,80724.0,80719.0,0.003]
[1741886039060,0.247759,80724.0,80716.0,1.512389]
[1741886039260,0.247751,80726.0,80720.0,0.262155]
[1741886039462,0.247723,80736.0,80720.0,0.262155]
[1741886039463,0.247711,80739.0,80730.0,0.012386]
[1741886039667,0.01065758,80743.0,80730.0,0.012386]
[1741886040021,0.0003378,80756.0,80746.0,0.012384]
[1741886040022,0.247671,80753.0,80746.0,0.012384]
[1741886040221,0.012383,80750.0,80740.0,0.012385]
[1741886040374,0.247671,80753.0,80745.0,0.24769]
[1741886040581,0.247678,80750.0,80745.0,0.23788565]
[1741886040782,0.000338,80754.0,80749.0,0.260064]
[1741886040967,0.247671,80753.0,80747.0,0.26007]
[1741886041168,0.247674,80752.0,80740.0,0.012385]
[1741886041380,0.247674,80752.0,80742.0,0.247702]
[1741886041760,0.247687,80747.0,80734.0,0.247725]
[1741886041897,0.012384,80746.0,80733.0,0.167026]
[1741886042232,0.003,80743.0,80733.0,0.28672699]
[1741886042459,0.247725,80735.0,80733.0,0.27434099]
[1741886042669,0.012384,80743.0,80733.0,0.27434099]
[1741886042864,0.0117447,80752.0,80733.0,0.27434099]
[1741886042865,0.247695,80745.0,80736.0,0.012386]
[1741886043018,0.01939823,80750.0,80749.0,0.012384]
[1741886043222,0.01939823,80750.0,80746.0,0.260072]
[1741886043420,0.01939823,80750.0,80745.0,0.012384]
[1741886043633,0.26707823,80750.0,80744.0,0.26008]
[1741886043829,0.26707823,80750.0,80740.0,0.260091]
[1741886043830,0.247688,80747.0,80740.0,0.260091]
[1741886043991,0.247683,80749.0,80733.0,0.15564]
[1741886043992,0.247697,80744.0,80741.0,0.11970099]
[1741886044195,0.012385,80742.0,80740.0,0.15464]
[1741886044446,0.247705,80741.0,80740.0,0.15464]
[1741886044867,0.247716,80738.0,80733.0,0.001]
[1741886045025,0.24772,80737.0,80734.0,0.11970099]
[1741886045205,0.260088,80742.0,80733.0,0.001]
[1741886045206,0.055,80776.0,80733.0,0.12070099]
[1741886045405,0.247687,80747.0,80742.0,0.260085]
[1741886045591,0.247687,80747.0,80742.0,0.012385]
[1741886045792,0.01973583,80750.0,80748.0,0.260065]
[1741886045993,0.01973583,80750.0,80745.0,0.012384]
[1741886045994,0.01973583,80750.0,80746.0,0.247689]
[1741886046190,0.247681,80749.0,80744.0,0.012384]
[1741886046393,0.247681,80749.0,80745.0,0.001]
[1741886046976,0.012384,80746.0,80745.0,0.001]
[1741886047132,0.247702,80743.0,80737.0,0.260099]
[1741886047341,0.24769,80746.0,80740.0,0.247706]
[1741886047542,0.012385,80740.0,80730.0,0.15464]
[1741886047753,0.247726,80735.0,80730.0,0.15464]
[1741886047954,0.247698,80744.0,80731.0,0.247736]
[1741886047955,0.24772,80737.0,80731.0,0.247736]
[1741886048135,0.247723,80736.0,80730.0,0.15464]
[1741886048333,0.24772,80736.0,80730.0,0.414762]
[1741886048924,0.01940095,80737.0,80731.0,0.260119]
[1741886049127,0.247727,80734.0,80733.0,0.002]
[1741886049299,0.247743,80729.0,80723.0,0.414786]
[1741886049515,0.247727,80734.0,80726.0,0.260136]
[1741886049659,0.247733,80733.0,80730.0,0.003]
[1741886049859,0.247733,80733.0,80730.0,0.002]
[1741886050061,0.247735,80732.0,80730.0,0.002]
[1741886050492,0.247745,80728.0,80727.0,0.11970099]
[1741886051062,0.247745,80728.0,80726.0,0.003]
[1741886051265,0.012387,80727.0,80726.0,0.003]
[1741886051668,0.01393565,80727.0,80726.0,0.003]
[1741886051913,0.0284765,80727.0,80726.0,0.003]
[1741886052117,0.44817749,80727.0,80726.0,0.003]
[1741886052324,0.260183,80712.0,80711.0,0.0001688]
[1741886053902,0.262183,80712.0,80711.0,0.0001688]
[1741886055177,0.260183,80712.0,80711.0,0.0001688]
[1741886055630,0.27163983,80712.0,80711.0,0.0001688]
[1741886056533,0.27063983,80712.0,80711.0,0.0001688]
[1741886056827,0.27263983,80712.0,80711.0,0.0001688]
[1741886057055,0.249794,80712.0,80711.0,0.0001688]
[1741886057187,0.002,80712.0,80711.0,0.0001688]
[1741886057394,0.002,80712.0,80711.0,0.2603548]
[1741886058202,0.01051759,80720.0,80715.0,0.247785]
[1741886058409,0.247779,80717.0,80716.0,1.5]
[1741886058607,0.247779,80717.0,80716.0,1.499]
[1741886059031,0.260167,80717.0,80716.0,1.499]
[1741886059235,0.260183,80712.0,80711.0,0.0001688]
[1741886060071,0.27958998,80712.0,80711.0,0.0001688]
[1741886061265,0.28058998,80712.0,80711.0,0.0001688]
[1741886061504,0.02040698,80712.0,80711.0,0.0001688]
[1741886061684,0.01940698,80712.0,80711.0,0.0125578]
[1741886061898,0.02140698,80712.0,80711.0,0.3125578]
[1741886062035,0.004,80712.0,80711.0,0.43225879]
[1741886062421,0.002,80712.0,80711.0,1.53385879]
[1741886062613,0.002,80712.0,80711.0,0.84945879]
[1741886063221,0.247733,80732.0,80721.0,0.012388]
[1741886063424,0.247736,80731.0,80724.0,0.012387]
[1741886063622,0.247736,80731.0,80725.0,0.37984199]
[1741886063785,0.247739,80730.0,80725.0,0.36745499]
[1741886063992,0.10849876,80733.0,80732.0,0.260119]
[1741886064327,0.10849876,80733.0,80731.0,0.247736]
[1741886064662,0.10849876,80733.0,80731.0,0.11970099]
[1741886064808,0.10849876,80733.0,80731.0,0.11870099]
[1741886065830,0.10849876,80733.0,80731.0,0.12070099]
[1741886066037,0.10849876,80733.0,80731.0,0.38081999]
[1741886066352,0.10849876,80733.0,80731.0,0.12070099]
[1741886066568,0.10849876,80733.0,80732.0,0.003]
[1741886066753,0.247691,80746.0,80739.0,0.012385]
[1741886066947,0.247696,80744.0,80732.0,0.13208699]
[1741886067146,0.012384,80743.0,80732.0,0.13208699]
[1741886067798,0.0194012,80741.0,80736.0,0.012386]
[1741886067998,0.0194012,80741.0,80740.0,0.012385]
[1741886069205,0.0194012,80741.0,80739.0,1.5]
[1741886069414,0.0194012,80741.0,80740.0,0.13208599]
[1741886069621,0.0194012,80741.0,80740.0,0.012385]
[1741886070281,0.2671072,80741.0,80728.0,0.247743]
[1741886070451,0.247713,80739.0,80732.0,0.260118]
[1741886070658,0.247713,80739.0,80733.0,0.53690099]
[1741886070865,0.247724,80735.0,80733.0,0.53690099]
[1741886071327,0.24772,80736.0,80733.0,0.4172]
[1741886071495,0.247717,80738.0,80733.0,0.677316]
[1741886071738,0.24772,80736.0,80733.0,0.4172]
[1741886072522,0.24772,80736.0,80733.0,0.4192]
[1741886072921,0.24772,80736.0,80733.0,0.4172]
[1741886073079,0.247726,80735.0,80733.0,0.4192]
[1741886073282,0.247717,80738.0,80733.0,0.4222]
[1741886073713,0.260113,80734.0,80733.0,0.4192]
[1741886073868,0.260113,80734.0,80733.0,0.4222]
[1741886074222,0.260113,80734.0,80733.0,0.4192]
[1741886074787,0.247754,80726.0,80718.0,0.247776]
[1741886075028,0.24776,80724.0,80719.0,0.11970099]
[1741886075188,0.247777,80718.0,80716.0,0.7866]
[1741886075745,0.012389,80712.0,80701.0,0.0001688]
[1741886075911,0.260183,80712.0,80701.0,0.0001688]
[1741886076697,0.1546,80726.0,80710.0,0.01239]
[1741886076902,0.247775,80719.0,80716.0,0.001]
[1741886077348,0.247785,80715.0,80711.0,0.0001688]
[1741886077527,0.247791,80714.0,80711.0,0.0011688]
[1741886077927,0.247791,80714.0,80711.0,0.0001688]
[1741886078579,0.247794,80712.0,80711.0,0.0021688]
[1741886078785,0.260183,80712.0,80711.0,0.0021688]
[1741886078989,0.247794,80712.0,80711.0,0.0001688]
[1741886079186,0.260183,80712.0,80711.0,0.0001688]
[1741886079344,0.260183,80712.0,80711.0,0.0021688]
[1741886079547,0.247794,80712.0,80711.0,0.0021688]
[1741886080074,0.01940558,80714.0,80711.0,0.0021688]
[1741886080280,0.01940558,80714.0,80713.0,0.012389]
[1741886080461,0.01940558,80714.0,80712.0,0.247794]
[1741886080663,0.01940558,80714.0,80711.0,0.0001688]
[1741886081144,0.247784,80716.0,80711.0,0.0051688]
[1741886081354,0.247784,80716.0,80711.0,0.0031688]
[1741886081533,0.247784,80716.0,80711.0,0.0001688]
[1741886081688,0.247787,80715.0,80712.0,0.003]
[1741886081894,0.247787,80715.0,80711.0,0.0001688]
[1741886082510,0.247787,80715.0,80711.0,0.0021688]
[1741886082704,0.247781,80717.0,80711.0,0.0145578]
[1741886082903,0.247784,80716.0,80711.0,0.0021688]
[1741886083192,0.247784,80716.0,80711.0,0.2499638]
[1741886083413,0.247788,80715.0,80711.0,0.0051688]
[1741886083616,0.247793,80713.0,80711.0,0.0021688]
[1741886083741,0.247793,80713.0,80711.0,0.0001688]
[1741886083982,0.247788,80715.0,80711.0,0.0021688]
[1741886084528,0.247788,80715.0,80711.0,0.0051688]
[1741886084772,0.247788,80715.0,80711.0,0.0031688]
[1741886084984,0.247788,80715.0,80711.0,0.0061688]
[1741886085256,0.24779,80714.0,80711.0,0.0061688]
[1741886085389,0.247794,80712.0,80711.0,0.0031688]
[1741886085588,0.247794,80712.0,80711.0,0.00307431]
[1741886085975,0.260183,80712.0,80711.0,0.00307431]
[1741886086190,0.247794,80712.0,80711.0,0.00307431]
[1741886086382,0.260147,80724.0,80713.0,0.260177]
[1741886086634,0.247746,80728.0,80721.0,0.260152]
[1741886086830,0.01347216,80731.0,80722.0,0.260149]
[1741886087031,0.402328,80747.0,80729.0,0.012387]
[1741886087229,0.402328,80747.0,80731.0,0.247736]
[1741886087230,0.26154459,80741.0,80731.0,0.247736]
[1741886087431,0.26154459,80741.0,80732.0,1.5]
[1741886087432,0.01940185,80733.0,80732.0,1.5]
[1741886087591,0.26713385,80733.0,80731.0,0.11970099]
[1741886088005,0.01940185,80733.0,80731.0,0.36543399]
[1741886088455,0.01940185,80733.0,80731.0,0.11770099]
[1741886088793,0.247733,80732.0,80731.0,0.11770099]
[1741886090407,0.247733,80732.0,80731.0,0.11786989]
[1741886090609,0.001,80733.0,80731.0,0.11786989]